[Event "German Championship Women 2022"]
[Site "Magdeburg"]
[Date "2022.08.15"]
[Round "2.2"]
[White "Voicu-Jagodzinsky, Carmen"]
[Black "Peglau, Dora"]
[Result "1-0"]
[ECO "B13"]
[WhiteElo "2258"]
[BlackElo "1920"]
[Annotator "TA"]
[PlyCount "105"]
[EventDate "2022.08.14"]
[EventType "swiss"]
[EventCountry "GER"]
[SourceTitle "playchess.com"]
[Source "ChessBase"]
[SourceQuality "1"]
[TimeControl "40/5400+30:1800+30"]

{[%evp 23,105,31,62,14,17,0,0,0,-5,-25,-25,-35,-18,-26,0,0,17,14,17,17,15,0,43,37,47,52,56,62,83,60,60,46,105,97,114,105,115,45,58,30,26,0,58,40,109,93,86,0,0,0,0,-31,39,75,110,101,846,839,832,705,699,0,472,457,447,395,378,389,552,541,557,355,652,577,29991,29992,29992,29993,29993,29994,29994,29995,29995,29994]} 1. e4 {[%emt 0:00:02]} c6 {[%emt 0:00:08]} 2. d4 {[%emt 0:00:06]} d5 {[%emt 0:00:05]} 3. exd5 {[%emt 0:00:04]} cxd5 {[%emt 0:00:06]} 4. Bd3 {[%emt 0:00:04]} Nc6 {[%emt 0:00:23]} 5. c3 {[%emt 0:00:07]} Nf6 {[%emt 0:00:14]} 6. Bf4 {[%emt 0:00:08]} Bg4 {[%emt 0:01:29]} 7. Qb3 {[%emt 0:00:11]} Qc8 {[%emt 0:00:19]} 8. Nd2 {[%emt 0:01:14]} e6 {[%emt 0:02:04]} 9. Ngf3 {[%emt 0:00:46]} Be7 {[%emt 0:03:13]} 10. O-O {[%emt 0:00:30]} O-O {[%emt 0:01:37]} 11. Qc2 {[%emt 0:05:16]} Bh5 {[%emt 0:02:59]} 12. Ne5 {[%emt 0:07:12]} Bg6 {[%emt 0:03:30]} 13. Bxg6 {[%emt 0:05:25] White is more active. B13: Caro-Kann: Exchange Variation and Panov-Botvinnik Attack.} (13. Nxg6 $14 hxg6 14. Nf3) 13... hxg6 $11 {[%emt 0:04:44]} 14. Qd3 {[%emt 0:05:34]} Nxe5 {[%emt 0:10:58] [#]} 15. dxe5 $146 {[%emt 0:01:55] The position is equal.} ({Predecessor:} 15. Bxe5 Qd8 16. Rfe1 Bd6 17. Qg3 Bxe5 18. Qxe5 b5 19. Nb3 a5 20. a3 Nd7 21. Qe2 {1-0 (44) Lafkidis,A (1463)-Katsanis,V (1465) Patras 2021}) 15... Nd7 {[%emt 0:00:42]} 16. Qe2 {[%emt 0:06:20]} b5 {[%emt 0:26:04]} 17. Rfd1 {[%emt 0:07:14][%cal Bf1d1,Bd1d4,Bd4b4][%mdl 32]} (17. Qxb5 Rb8 18. Qa5 Rxb2 $15) 17... Qb7 {[%emt 0:05:17]} 18. Nf3 {[%emt 0:06:01][%cal Bd2f3,Bf3e1,Be1c2][%mdl 32]} a6 {[%emt 0:05:08]} 19. Bg5 {[%emt 0:03:12]} Nc5 {[%emt 0:03:19]} 20. Rd4 {[%emt 0:03:05]} Ne4 {[%emt 0:02:04]} 21. Bxe7 {[%emt 0:00:16]} Qxe7 {[%emt 0:00:07]} 22. Ne1 {[%emt 0:07:48]} f6 {[%emt 0:10:38]} 23. exf6 {[%emt 0:02:15]} gxf6 {[%emt 0:01:15]} 24. a4 {[%emt 0:03:37]} Qb7 {[%emt 0:04:05]} 25. Rb4 {[%emt 0:02:30]} Rfb8 {[%emt 0:03:14]} 26. h3 {[%emt 0:06:27]} Kf7 {[%emt 0:01:06]} 27. Nc2 {[%emt 0:05:18]} Nd6 {[%emt 0:02:03]} ({Black should play} 27... Qd7 $14) 28. axb5 $16 {[%emt 0:04:19]} axb5 {[%emt 0:00:33]} 29. Rxa8 {[%emt 0:00:26]} ({Don't play} 29. Re1 Qd7 $14) 29... Qxa8 {[%emt 0:01:48]} 30. Qe3 {[%emt 0:06:32]} (30. Nd4 $16 e5 31. Qg4) 30... e5 {[%emt 0:03:01]} 31. Qc5 {[%emt 0:01:31]} Ke6 {[%emt 0:00:17][%cal Od5d4]} 32. Qe3 {[%emt 0:02:52] Inhibits d4.} (32. f4 $5 {[%cal Rf4e5]}) 32... Kf7 $1 {[%emt 0:00:28]} 33. Qd3 {[%emt 0:04:44]} g5 {[%emt 0:02:06]} (33... Nc4 $14) 34. Ne3 {[%emt 0:00:36]} Ke6 {[%emt 0:00:26]} 35. b3 {[%emt 0:01:41]} (35. h4 $16) 35... Rc8 $11 {[%emt 0:00:54]} 36. Kh2 {[%emt 0:00:59]} Qc6 {[%emt 0:00:38]} 37. Rg4 {[%emt 0:01:10]} Ne4 {[%emt 0:01:00]} (37... e4 $15 38. Qd1 Nf5 39. Nxf5 Kxf5) 38. c4 $14 {[%emt 0:00:25]} bxc4 {[%emt 0:00:33] Black is on the road to losing.} 39. bxc4 {[%emt 0:00:01]} Nc3 {[%emt 0:00:51][%mdl 8192] [#]} 40. cxd5+ $18 {[%emt 0:00:33]} ({Not} 40. Qxc3 d4 41. Qe1 (41. Rxd4 exd4 42. Qxd4 Qd6+ 43. Qxd6+ Kxd6 $11) 41... dxe3 $16) 40... Nxd5 {[%emt 0:00:11]} 41. Qf5+ Kd6 {[%emt 0:01:21]} 42. Qd3 $2 {[%emt 0:04:14]} (42. Nxd5 $18 Kxd5 43. Rg3) 42... Rb8 $2 {[%emt 0:10:39][%mdl 8192]} (42... Ke6 $1 $11 {and Black has nothing to worry.}) 43. Rc4 {[%emt 0:01:03]} Qb5 {[%emt 0:01:09]} 44. Nf5+ {[%emt 0:07:44]} Ke6 {[%emt 0:01:40]} 45. Qe4 {[%emt 0:00:12] [#] Nd4+ would kill now.} Kd7 {[%emt 0:11:28]} (45... Qb7 $142 46. Rd4 Qb1 47. Qxd5+ Kxf5) 46. Rc2 {[%emt 0:00:44] Hoping for Rd2.} Qa5 {[%emt 0:01:18] Prevents Rd2.} 47. Qd3 {[%emt 0:03:42] Prevents Rb3. Black must now prevent Ne3.} Rb5 $2 {[%emt 0:01:25]} (47... Qb5 48. Qe4 Qb7) 48. Ne3 {[%emt 0:03:49] White wants to mate with Qf5+.} Ke7 {[%emt 0:01:05]} 49. Qh7+ {[%emt 0:00:39] White mates.} Kd8 {[%emt 0:01:39]} 50. Qg8+ {[%emt 0:00:56]} Kd7 {[%emt 0:00:03]} 51. Qc8+ {[%emt 0:02:43]} Ke7 {[%emt 0:00:06]} 52. Nf5+ {[%emt 0:02:53]} Kf7 {[%emt 0:00:06]} 53. Nd6+ {[%emt 0:00:05] Weighted Error Value: White=0.31/Black=0.66} 1-0

[Event "German Championship Women 2022"]
[Site "Magdeburg"]
[Date "2022.08.15"]
[Round "2.3"]
[White "Bazzazi, Elnaz"]
[Black "Muetsch, Annmarie"]
[Result "1-0"]
[ECO "B07"]
[WhiteElo "1766"]
[BlackElo "2249"]
[Annotator "TA"]
[PlyCount "89"]
[EventDate "2022.08.14"]
[EventType "swiss"]
[EventCountry "GER"]
[SourceTitle "playchess.com"]
[Source "ChessBase"]
[SourceQuality "1"]
[TimeControl "40/5400+30:1800+30"]

{[%evp 9,89,45,62,56,60,50,79,72,70,-15,83,-65,116,112,102,67,77,92,90,75,81,78,86,68,78,59,72,75,136,160,257,248,250,187,372,383,697,304,307,158,180,156,249,223,233,226,340,199,189,179,156,156,475,458,441,450,406,367,352,270,626,270,225,234,436,450,450,450,450,450,529,529,529,529,529,493,534,534,525,481,541,504]} 1. e4 {[%emt 0:00:02]} d6 {[%emt 0:00:26]} 2. d4 {[%emt 0:00:11]} Nf6 {[%emt 0:00:05]} 3. Nc3 {[%emt 0:00:32]} e5 {[%emt 0:00:13]} 4. f4 {[%emt 0:01:43]} exf4 {[%emt 0:06:26]} 5. Bxf4 {[%emt 0:01:54]} Be7 {[%emt 0:10:08]} 6. Nf3 {[%emt 0:09:07] B07: Pirc Defence: Miscellaneous Systems.} O-O {[%emt 0:01:12]} 7. Bd3 {[%emt 0:04:35]} Nc6 {[%emt 0:11:15]} 8. a3 $1 {[%emt 0:04:09] White is better.} Bg4 {[%emt 0:01:35]} 9. Ne2 {[%emt 0:01:49] [#]} (9. Be3 $14) 9... Re8 $146 {[%emt 0:08:59]} (9... d5 $11 {remains equal.} 10. e5 Nh5) ({Predecessor:} 9... Bxf3 10. gxf3 Nh5 11. Bg3 Bh4 12. Qd2 Qf6 13. Qe3 Nxg3 14. hxg3 Bg5 15. f4 Bh6 {1-0 (23) Bruckmann,J (1711)-Otto,H (1386) Germany 2016}) 10. c3 {[%emt 0:05:33] [#]} (10. O-O $16) 10... h6 $2 {[%emt 0:14:51]} (10... Nxe4 $1 $15 {stays ahead.} 11. Bxe4 (11. O-O d5) 11... Bh4+ 12. Nxh4 (12. Bg3 Bxg3+ 13. Nxg3 d5 $17) 12... Qxh4+ 13. Bg3 (13. g3 $2 Qh5 $19) 13... Bxe2 $1 14. Qxe2 Qxe4 15. Qxe4 Rxe4+ 16. Kd2 Rae8) 11. Qc2 {[%emt 0:04:42]} Bf8 {[%emt 0:07:34]} 12. O-O-O {[%emt 0:01:17]} Bh5 {[%emt 0:01:56]} 13. Ng3 {[%emt 0:10:35]} Bg6 {[%emt 0:01:34]} 14. Nh4 {[%emt 0:02:26]} Bxe4 {[%emt 0:04:32]} 15. Nxe4 {[%emt 0:00:49]} Nxe4 {[%emt 0:00:05]} 16. Bxe4 {[%emt 0:02:33]} Qxh4 {[%emt 0:00:05]} 17. g3 {[%emt 0:00:11]} Qd8 {[%emt 0:02:20]} 18. Rhf1 {[%emt 0:01:17][%mdl 1024] White has strong compensation.} Be7 {[%emt 0:07:39]} (18... d5 $142 19. Bh7+ Kh8) 19. Bd5 $36 {[%emt 0:06:45][%mdl 2048] And now Qg6 would win. Black is under strong pressure. 0x0.001b8438b6b9dp-1022s more active pieces.} Rf8 {[%emt 0:05:08]} (19... Bf6 $16 20. Kb1 (20. Qg6 Rf8 $16) 20... Rf8) 20. h4 $18 {[%emt 0:08:03][%cal Of4h6] Hoping for Bxh6!} Kh8 {[%emt 0:04:16]} 21. Qf5 {[%emt 0:01:58][%cal Of4h6] Threatens to win with Bxh6!} g6 $2 {[%emt 0:03:44]} (21... Qc8 22. Qh5 Qe8 23. Bxh6 f6 24. Qxe8 (24. Bxg7+ Kxg7 25. Qg4+ Qg6 $11) 24... Raxe8) 22. Qd3 {[%emt 0:02:13]} Kg7 {[%emt 0:01:26] [#]} (22... h5 23. Bh6 f5 24. Bxf8 Qxf8) 23. Qd2 {[%emt 0:00:24]} (23. Bxf7 $142 $1 {[%mdl 512]} Kxf7 24. Bxh6+ Bf6 25. Bxf8 Qxf8 26. Rxf6+ $1 {[%mdl 512]} Kxf6 27. Rf1+ Ke7 28. Rxf8 Rxf8 29. Qxg6) 23... g5 {[%emt 0:00:47]} 24. hxg5 {[%emt 0:01:37]} (24. Be3 $18) 24... Bxg5 $16 {[%emt 0:01:10]} 25. Rf2 {[%emt 0:02:53]} f6 {[%emt 0:01:33]} (25... Qf6 $16 26. Rdf1 Nd8) 26. Bb3 {[%emt 0:00:34]} Ne7 {[%emt 0:01:22]} 27. Bc2 {[%emt 0:01:09]} Qe8 {[%emt 0:00:47]} (27... Qd7 {might work better.} 28. Rdf1 (28. Qd3 Bxf4+ 29. Rxf4 f5 $18) 28... Qb5) 28. Re1 {[%emt 0:00:29]} (28. Qd3 Bxf4+ 29. gxf4 f5 $18) (28. Bxg5 $142 fxg5 29. Rxf8 (29. Rdf1 Ng6 $16) 29... Qxf8 30. Qd3) 28... Qf7 $18 {[%emt 0:00:19]} 29. Bxg5 {[%emt 0:04:56]} hxg5 {[%emt 0:00:05] [#]} 30. Qd3 $1 {[%emt 0:00:24][%csl Gc2][%cal Rd3h7]} f5 $2 {[%emt 0:00:20] This costs Black the game.} (30... Rh8 $16 {is more resistant.} 31. Bb3 d5) 31. g4 {[%emt 0:00:48][%cal Rg4f5]} (31. Qe3 Nd5 32. Qxg5+ Qg6 33. Qxg6+ (33. Rxf5 Rxf5 34. Qxf5 Qxf5 $16) 33... Kxg6 $18) 31... Rae8 {[%emt 0:03:17]} 32. gxf5 {[%emt 0:01:27] f6+ would kill now.} Nd5 {[%emt 0:00:17]} 33. Rg1 {[%emt 0:03:47]} Kf6 {[%emt 0:00:04]} 34. Qg3 {[%emt 0:03:32][%csl Gg1][%cal Rg3g5]} Rg8 {[%emt 0:00:10]} (34... Ke7 35. f6+ (35. Qxg5+ Nf6 $16) 35... Nxf6 36. Qxg5 (36. Rgf1 Qg7 $14) 36... Qh5 37. Qg7+ Rf7) 35. Rh2 {[%emt 0:00:57]} (35. Bb3 $142) 35... Ke7 {[%emt 0:00:56] [#]} 36. Rh7 $1 {[%emt 0:07:27] The board is on fire.} Qxh7 {[%emt 0:01:15]} (36... Rg7) 37. f6+ $1 {[%emt 0:00:14][%mdl 64] Discovered Attack. White is clearly winning.} Nxf6 {[%emt 0:00:04]} 38. Bxh7 {[%emt 0:00:15]} Nxh7 {[%emt 0:00:03]} 39. Qg2 {[%emt 0:02:56]} ({Don't do} 39. Qf3 Nf6 40. Qxb7 Kd7 41. Qxa7 g4 $18) 39... Nf6 {[%emt 0:01:16]} 40. Qxb7 {[%emt 0:00:20]} Kd7 {[%emt 0:00:31]} 41. Qb5+ {[%emt 0:31:01]} Kc8 {[%emt 0:04:15]} 42. Rxg5 {[%emt 0:00:00]} Rxg5 {[%emt 0:04:21]} 43. Qxg5 {[%emt 0:00:00]} Nd7 {[%emt 0:00:27]} 44. a4 {[%emt 0:00:00]} c6 {[%emt 0:01:21]} 45. Qg6 {[%emt 0:00:00][%csl LRd6,LRe8] Weighted Error Value: White=0.46/Black=0.65} 1-0

[Event "German Championship Women 2022"]
[Site "Magdeburg"]
[Date "2022.08.15"]
[Round "2.4"]
[White "Kunze, Kerstin"]
[Black "Wartenberg, Alissa"]
[Result "1-0"]
[ECO "A00"]
[WhiteElo "2020"]
[BlackElo "1632"]
[Annotator "NA RC"]
[PlyCount "71"]
[EventDate "2022.08.14"]
[EventType "swiss"]
[EventCountry "GER"]
[SourceTitle "playchess.com"]
[Source "ChessBase"]
[SourceQuality "1"]
[TimeControl "40/5400+30:1800+30"]

1. g3 d5 2. Bg2 e5 3. d3 Nc6 4. Nf3 Be6 5. Ng5 Bf5 6. e4 dxe4 7. Nxe4 Nf6 8. Nbc3 Bb4 9. O-O Bxc3 10. Nxc3 Qd7 11. Bg5 Bh3 12. Bxf6 gxf6 13. Nd5 O-O-O 14. Nxf6 Qe6 15. Bxh3 Qxh3 16. Qg4+ Qxg4 17. Nxg4 f5 $16 18. Ne3 f4 19. Nc4 h5 20. f3 Rhg8 21. Kf2 fxg3+ 22. hxg3 Nd4 23. Nxe5 Rde8 24. f4 Rgf8 25. c3 Nc2 26. Rac1 Rxe5 27. Rxc2 h4 28. Kg2 Rh5 29. g4 h3+ 30. Kg3 Rh7 31. Rh2 Re8 32. Rf3 Reh8 33. Re3 Kd7 34. f5 Rh4 35. Re4 R4h7 36. Re1 1-0

[Event "German Championship Women 2022"]
[Site "Magdeburg"]
[Date "2022.08.15"]
[Round "2.5"]
[White "Birkholz, Olga"]
[Black "Mekus, Manuela"]
[Result "1-0"]
[ECO "B00"]
[WhiteElo "2002"]
[BlackElo "1638"]
[Annotator "NA RC"]
[PlyCount "63"]
[EventDate "2022.08.14"]
[EventType "swiss"]
[EventCountry "GER"]
[SourceTitle "playchess.com"]
[Source "ChessBase"]
[SourceQuality "1"]
[TimeControl "40/5400+30:1800+30"]

1. e4 {[%emt 0:00:22]} d6 {[%emt 0:00:27]} 2. Nc3 {[%emt 0:00:08]} c6 {[%emt 0:00:30]} 3. Be2 {[%emt 0:00:28]} g6 {[%emt 0:00:16]} 4. d4 {[%emt 0:01:31]} Bg7 {[%emt 0:00:22]} 5. Be3 {[%emt 0:00:17]} Nd7 {[%emt 0:00:24]} 6. Qd2 {[%emt 0:02:22]} Ngf6 {[%emt 0:01:37]} 7. O-O-O {[%emt 0:06:31]} e5 {[%emt 0:06:44]} 8. Bh6 {[%emt 0:08:15]} (8. g4 $16) 8... exd4 {[%emt 0:20:24]} 9. Bxg7 {[%emt 0:00:43]} dxc3 {[%emt 0:00:12]} 10. Qxc3 {[%emt 0:02:04]} Rg8 {[%emt 0:02:50]} 11. Bh6 {[%emt 0:01:53]} Nxe4 {[%emt 0:02:36]} 12. Qe3 {[%emt 0:00:23]} Qe7 {[%emt 0:00:42]} 13. f3 {[%emt 0:11:01]} Nec5 {[%emt 0:11:47]} 14. Rxd6 {[%emt 0:01:51]} Qxe3+ {[%emt 0:00:33]} 15. Bxe3 {[%emt 0:00:01]} Ke7 {[%emt 0:07:53]} 16. Rd2 {[%emt 0:00:38]} Ne6 {[%emt 0:01:31]} 17. Nh3 {[%emt 0:02:54]} Nf6 {[%emt 0:02:34]} 18. Bc4 $16 {[%emt 0:03:27]} Ne8 {[%emt 0:17:24]} 19. Re1 {[%emt 0:08:37]} b6 {[%emt 0:02:00]} 20. Ng5 {[%emt 0:02:11]} N8c7 {[%emt 0:03:16]} 21. Bf4 {[%emt 0:02:51]} Ne8 {[%emt 0:11:07]} 22. Nxe6 {[%emt 0:04:16]} Bxe6 {[%emt 0:00:29]} 23. Bg5+ {[%emt 0:00:18]} Nf6 {[%emt 0:01:08]} 24. Rde2 {[%emt 0:03:36]} h6 {[%emt 0:00:28]} 25. Bxf6+ {[%emt 0:00:21]} Kxf6 {[%emt 0:00:14]} 26. Bxe6 {[%emt 0:00:01]} fxe6 {[%emt 0:00:19]} 27. Rxe6+ {[%emt 0:00:05]} Kg7 {[%emt 0:00:02]} 28. Rxc6 {[%emt 0:00:21]} Rgf8 {[%emt 0:00:15]} 29. Ree6 {[%emt 0:00:43]} Rfe8 {[%emt 0:00:34]} 30. Rxg6+ {[%emt 0:01:33]} Kf7 {[%emt 0:00:49]} 31. Rcf6+ {[%emt 0:00:41]} Ke7 {[%emt 0:00:11]} 32. Rxh6 {[%emt 0:00:56]} 1-0

[Event "German Championship Women 2022"]
[Site "Magdeburg"]
[Date "2022.08.15"]
[Round "2.7"]
[White "Falke, Ornella"]
[Black "Bluebaum, Johanna"]
[Result "1-0"]
[ECO "C11"]
[WhiteElo "1912"]
[BlackElo "2013"]
[Annotator "NA RC"]
[PlyCount "111"]
[EventDate "2022.08.14"]
[EventType "swiss"]
[EventCountry "GER"]
[SourceTitle "playchess.com"]
[Source "ChessBase"]
[SourceQuality "1"]
[TimeControl "40/5400+30:1800+30"]

1. e4 {[%emt 0:00:42]} e6 {[%emt 0:00:14]} 2. Nf3 {[%emt 0:00:31]} d5 {[%emt 0:00:18]} 3. Nc3 {[%emt 0:00:51]} Nf6 {[%emt 0:06:45]} 4. e5 {[%emt 0:00:53]} Nfd7 {[%emt 0:00:43]} 5. d4 {[%emt 0:01:39]} a6 {[%emt 0:00:35]} 6. Bg5 {[%emt 0:08:28]} f6 {[%emt 0:14:34]} 7. exf6 {[%emt 0:03:52]} gxf6 {[%emt 0:00:09]} 8. Bh4 {[%emt 0:04:15]} Be7 {[%emt 0:14:10]} 9. Nd2 {[%emt 0:11:45]} Nf8 {[%emt 0:09:50]} 10. Bd3 {[%emt 0:02:35]} Ng6 {[%emt 0:08:11]} 11. Qh5 {[%emt 0:01:55]} Kf7 {[%emt 0:12:51]} 12. O-O-O $16 {[%emt 0:04:52]} c5 {[%emt 0:03:01]} 13. dxc5 {[%emt 0:01:10]} Nc6 {[%emt 0:03:16]} 14. f4 {[%emt 0:05:20]} Bxc5 {[%emt 0:01:53]} 15. f5 {[%emt 0:08:49]} exf5 {[%emt 0:00:26]} 16. Nxd5 {[%emt 0:00:25]} Nce5 {[%emt 0:03:59]} 17. Bxf6 {[%emt 0:03:25]} Nxd3+ {[%emt 0:01:02]} 18. cxd3 {[%emt 0:00:13]} Qxd5 {[%emt 0:00:51]} 19. Bxh8 {[%emt 0:00:39]} Kg8 {[%emt 0:00:52]} 20. Bc3 {[%emt 0:00:30]} Qxa2 {[%emt 0:01:17]} 21. Rde1 {[%emt 0:13:36]} Be6 {[%emt 0:01:31]} 22. Ne4 {[%emt 0:06:27]} fxe4 {[%emt 0:05:41]} 23. Qxc5 {[%emt 0:00:12]} Rc8 {[%emt 0:03:27]} 24. Qd4 {[%emt 0:00:09]} Rxc3+ {[%emt 0:00:25]} 25. Qxc3 {[%emt 0:01:03]} Nf4 {[%emt 0:00:27]} 26. dxe4 {[%emt 0:01:21]} b5 {[%emt 0:01:58]} 27. Qg3+ {[%emt 0:01:22]} Ng6 {[%emt 0:00:16]} 28. Qa3 {[%emt 0:05:27]} Qc4+ {[%emt 0:00:17]} 29. Qc3 {[%emt 0:00:08]} Qa4 {[%emt 0:00:52]} 30. Kd2 {[%emt 0:01:44]} b4 {[%emt 0:00:43]} 31. Qd4 {[%emt 0:00:10]} Qa5 {[%emt 0:00:56]} 32. h4 {[%emt 0:01:26]} b3+ {[%emt 0:00:29]} 33. Ke3 {[%emt 0:00:43]} Nxh4 {[%emt 0:01:15]} 34. Re2 {[%emt 0:05:02]} Qg5+ {[%emt 0:00:36]} 35. Kd3 {[%emt 0:00:15]} Ng6 {[%emt 0:00:40]} 36. Rf1 {[%emt 0:04:25]} Nf4+ {[%emt 0:02:30]} 37. Rxf4 {[%emt 0:00:06]} Qxf4 {[%emt 0:00:17]} 38. Rf2 {[%emt 0:00:53]} Qc7 {[%emt 0:00:19]} 39. Ke3 {[%emt 0:01:29]} Qg3+ {[%emt 0:01:18]} 40. Rf3 {[%emt 0:00:37]} Qe1+ {[%emt 0:00:43]} 41. Kf4 {[%emt 0:31:01]} Qh4+ {[%emt 0:06:33]} 42. Ke5 {[%emt 0:00:00]} Bf7 {[%emt 0:04:43]} 43. Qd7 {[%emt 0:00:00]} Qg5+ {[%emt 0:00:35]} 44. Rf5 {[%emt 0:00:00]} Qg3+ {[%emt 0:04:20]} 45. Kd4 {[%emt 0:00:00]} Qg7+ {[%emt 0:00:59]} 46. Ke3 {[%emt 0:00:00]} Qg3+ {[%emt 0:06:28]} 47. Rf3 {[%emt 0:00:00]} Qe1+ {[%emt 0:03:30]} 48. Kf4 {[%emt 0:00:00]} Qc1+ {[%emt 0:00:50]} 49. Kg4 {[%emt 0:00:00]} h5+ {[%emt 0:00:36]} 50. Kf5 {[%emt 0:00:00]} Qc5+ {[%emt 0:00:55]} 51. Kf4 {[%emt 0:00:00]} Qc1+ {[%emt 0:00:43]} 52. Kg3 {[%emt 0:02:23]} Qc4 {[%emt 0:02:09]} 53. Qd8+ {[%emt 0:00:27]} Kg7 {[%emt 0:00:57]} 54. Qg5+ {[%emt 0:00:06]} Kh7 {[%emt 0:00:38]} 55. Rf6 {[%emt 0:01:01]} Qc7+ {[%emt 0:00:55]} 56. e5 {[%emt 0:00:18]} 1-0

[Event "German Championship Women 2022"]
[Site "Magdeburg"]
[Date "2022.08.15"]
[Round "2.8"]
[White "Fock, Sana"]
[Black "Voigt, Anastasia"]
[Result "1-0"]
[ECO "C29"]
[WhiteElo "1807"]
[BlackElo "1694"]
[Annotator "NA RC"]
[PlyCount "39"]
[EventDate "2022.08.14"]
[EventType "swiss"]
[EventCountry "GER"]
[SourceTitle "playchess.com"]
[Source "ChessBase"]
[SourceQuality "1"]
[TimeControl "40/5400+30:1800+30"]

1. e4 {[%emt 0:00:01]} e5 {[%emt 0:00:05]} 2. Nc3 {[%emt 0:00:05]} Nf6 {[%emt 0:00:12]} 3. f4 {[%emt 0:00:12]} d5 {[%emt 0:00:05]} 4. fxe5 {[%emt 0:00:06]} Nxe4 {[%emt 0:00:06]} 5. Qf3 {[%emt 0:00:07]} Nxc3 {[%emt 0:03:39]} 6. bxc3 {[%emt 0:00:13]} Be7 {[%emt 0:01:52]} 7. d4 {[%emt 0:00:31]} O-O {[%emt 0:04:49]} 8. Bd3 {[%emt 0:04:36]} Re8 {[%emt 0:10:03]} 9. Ne2 {[%emt 0:12:33]} c6 {[%emt 0:11:25]} 10. O-O {[%emt 0:07:37]} Rf8 {[%emt 0:03:54]} 11. Nf4 {[%emt 0:13:53]} Na6 {[%emt 0:11:33]} 12. Nh5 {[%emt 0:09:03]} Nc7 {[%emt 0:02:10]} 13. Nxg7 {[%emt 0:05:49]} Bg5 {[%emt 0:17:33]} 14. Nh5 {[%emt 0:10:15]} Bxc1 {[%emt 0:07:00]} 15. Nf6+ {[%emt 0:01:17]} Kg7 {[%emt 0:01:47]} 16. Raxc1 {[%emt 0:00:47]} h6 {[%emt 0:01:39]} 17. Qg3+ {[%emt 0:01:18]} Kh8 {[%emt 0:00:10]} 18. Qh4 {[%emt 0:00:36]} Kg7 {[%emt 0:00:27]} 19. Rf3 {[%emt 0:01:32]} Ne6 {[%emt 0:00:29]} 20. Rg3+ {[%emt 0:00:32]} 1-0

[Event "German Championship Women 2022"]
[Site "Magdeburg"]
[Date "2022.08.15"]
[Round "2.9"]
[White "Basovskiy, Jana"]
[Black "Halas, Julia"]
[Result "1-0"]
[ECO "C00"]
[WhiteElo "1867"]
[BlackElo "2012"]
[Annotator "NA RC"]
[PlyCount "63"]
[EventDate "2022.08.14"]
[EventType "swiss"]
[EventCountry "GER"]
[SourceTitle "playchess.com"]
[Source "ChessBase"]
[SourceQuality "1"]
[TimeControl "40/5400+30:1800+30"]

1. e4 {[%emt 0:00:02]} e6 {[%emt 0:00:05]} 2. d3 {[%emt 0:00:03]} d5 {[%emt 0:00:05]} 3. Nd2 {[%emt 0:00:04]} Nf6 {[%emt 0:00:07]} 4. Ngf3 {[%emt 0:00:03]} b6 {[%emt 0:00:13]} 5. c3 {[%emt 0:00:07]} Be7 {[%emt 0:00:17]} 6. Qa4+ {[%emt 0:00:17]} Nfd7 {[%emt 0:02:19]} 7. e5 {[%emt 0:26:27]} O-O {[%emt 0:03:49]} 8. d4 {[%emt 0:00:31]} c5 {[%emt 0:04:34]} 9. Bd3 {[%emt 0:00:52]} f5 {[%emt 0:08:01]} 10. exf6 $1 {[%emt 0:03:36]} Nxf6 {[%emt 0:00:28]} 11. O-O {[%emt 0:02:13]} cxd4 {[%emt 0:14:35]} 12. cxd4 {[%emt 0:05:55]} Bd7 {[%emt 0:04:01]} 13. Qd1 {[%emt 0:04:54]} Nc6 {[%emt 0:00:38]} 14. Re1 {[%emt 0:00:42]} Rc8 {[%emt 0:04:57]} 15. Nf1 {[%emt 0:02:08]} Qc7 {[%emt 0:07:28]} 16. a3 {[%emt 0:09:55]} Bd6 {[%emt 0:06:27]} 17. Bg5 {[%emt 0:04:01]} h6 {[%emt 0:18:36]} 18. Bh4 $14 {[%emt 0:01:44]} Nh5 {[%emt 0:05:09]} 19. Rc1 {[%emt 0:08:24]} Bf4 {[%emt 0:14:08]} 20. Rc3 {[%emt 0:00:58]} Qd6 {[%emt 0:01:13]} 21. g3 {[%emt 0:06:29]} g5 {[%emt 0:00:11]} 22. Nxg5 {[%emt 0:01:01]} hxg5 {[%emt 0:01:13]} 23. Qxh5 {[%emt 0:01:29]} Qe7 {[%emt 0:00:17]} 24. gxf4 {[%emt 0:11:18]} gxh4 {[%emt 0:00:07]} 25. f5 {[%emt 0:05:02]} Qg7+ {[%emt 0:00:18]} 26. Kh1 {[%emt 0:00:04]} Be8 {[%emt 0:02:03]} 27. Qxh4 {[%emt 0:00:24]} Nxd4 {[%emt 0:01:47]} 28. f6 {[%emt 0:01:51]} Rxf6 {[%emt 0:00:53]} 29. Rxc8 {[%emt 0:02:12]} Nf3 {[%emt 0:00:11]} 30. Rxe8+ {[%emt 0:01:22]} Rf8 {[%emt 0:00:47]} 31. Rxf8+ {[%emt 0:00:13]} Kxf8 {[%emt 0:00:20]} 32. Qf4+ {[%emt 0:00:12]} 1-0